bitfinex-derivatives/quotes_SOLF0:USTF0_20240927
["timestamp","ask_amount","ask_price","bid_price","bid_amount"]
[1727444968524,27.05,155.92,155.82,1.5867]
[1727444968726,27.05,155.95,155.82,30.2009]
[1727444969833,27.05,155.95,155.84,27.05]
[1727444970430,3.2055,155.94,155.9,3.2062]
[1727444970730,27.05,155.95,155.84,27.05]
[1727444970928,3.2058,155.93,155.84,27.05]
[1727444971130,27.05,155.95,155.82,30.2009]
[1727444972135,27.05,155.95,155.84,27.05]
[1727444972335,28.0218,155.98,155.84,27.05]
[1727444972531,47.2218,155.98,155.84,27.05]
[1727444972833,3.2059,155.93,155.89,3.2065]
[1727444973023,3.13002907,155.93,155.82,30.2009]
[1727444973228,3.206,155.92,155.88,3.2067]
[1727444973636,3.206,155.92,155.82,30.2009]
[1727444975932,27.05,155.95,155.82,30.2009]
[1727444976129,48.8173,156.0,155.87,27.05]
[1727444976339,48.8173,156.0,155.88,1.6544]
[1727444976728,2.5673,156.0,155.89,30.3087]
[1727444976930,1.5917,156.0,155.89,30.3087]
[1727444977229,79.3843,156.01,155.97,3.2048]
[1727444977437,76.18,156.01,155.92,27.05]
[1727444977641,29.7155,156.04,155.92,27.05]
[1727444978339,3.2039,156.02,155.92,27.05]
[1727444978940,3.2041,156.01,155.97,3.2047]
[1727444979242,28.7367,156.04,155.92,27.05]
[1727444979441,3.23767934,156.05,155.95,27.05]
[1727444979639,3.23767934,156.05,155.96,1.6341]
[1727444980042,224.0,156.28,156.0,288.0]
[1727444980250,3.22804431,156.12,156.0,27.05]
[1727444980543,30.252,156.11,156.05,3.2031]
[1727444980743,27.05,156.11,155.97,3.2829]
[1727444981251,3.2026,156.09,156.04,3.2034]
[1727444981440,28.6862,156.11,155.97,3.2829]
[1727444981643,3.15078923,156.12,156.01,27.05]
[1727444981844,3.2018,156.13,156.07,3.2027]
[1727444982044,3.12995279,156.12,156.07,3.2027]
[1727444983053,3.12995279,156.12,156.06,3.203]
[1727444983853,6.33175279,156.12,156.06,3.203]
[1727444984053,3.2018,156.12,156.06,3.203]
[1727444984769,27.05,156.14,156.01,27.05]
[1727444984953,1.6362,156.15,156.03,27.05]
[1727444985257,27.05,156.14,156.04,3.226]
[1727444985458,30.22745272,156.14,156.04,3.226]
[1727444985858,3.2018,156.13,156.07,3.2028]
[1727444986960,3.2018,156.13,156.08,3.2026]
[1727444987163,30.22745272,156.14,156.04,3.226]
[1727444987164,3.202,156.12,156.04,3.226]
[1727444987462,30.22745272,156.14,156.04,3.226]
[1727444987855,19.2,156.23,156.07,27.05]
[1727444988056,27.05,156.21,156.07,27.05]
[1727444988255,0.9766,156.2,156.07,27.05]
[1727444988451,2.6392,156.2,156.07,27.05]
[1727444988965,19.2,156.19,156.07,27.05]
[1727444989259,3.2008,156.18,156.07,27.05]
[1727444990761,3.2008,156.18,156.13,3.2014]
[1727444990967,22.4004,156.19,156.07,27.05]
[1727444991267,22.4004,156.19,156.09,27.05]
[1727444991268,19.2,156.19,156.09,27.05]
[1727444991863,22.4004,156.19,156.09,27.05]
[1727444992659,1.6626,156.2,156.09,27.05]
[1727444993456,1.6626,156.2,156.15,3.201]
[1727444993868,4.8629,156.2,156.15,3.201]
[1727444994177,1.6626,156.2,156.09,27.05]
[1727444994461,4.8629,156.2,156.09,27.05]
[1727444995260,4.8629,156.2,156.15,3.2011]
[1727444995261,3.2004,156.19,156.15,3.2011]
[1727444997067,3.2006,156.18,156.09,27.05]
[1727444997269,1.6626,156.2,156.09,27.05]
[1727444997967,1.6626,156.2,156.15,3.2011]
[1727444998869,1.6626,156.2,156.16,3.201]
[1727444999273,1.6626,156.2,156.09,27.05]
[1727444999466,19.2,156.22,156.12,27.05]
[1727445000371,19.2,156.22,156.15,16.91]
[1727445000765,22.3999,156.22,156.17,3.2008]
[1727445000962,19.2,156.22,156.15,16.91]
[1727445001166,19.2,156.22,156.13,1.6882]
[1727445001665,3.2002,156.21,156.17,3.2008]
[1727445002065,3.2005,156.19,156.15,3.2011]
[1727445002571,3.2005,156.19,156.07,6.4055]
[1727445002572,36.11,156.21,156.1,16.91]
[1727445002773,36.11,156.21,156.12,16.91]
[1727445003074,19.2,156.21,156.12,16.91]
[1727445003275,22.4001,156.21,156.12,16.91]
[1727445003575,20.12870104,156.23,156.14,16.91]
[1727445003776,20.12870104,156.23,156.18,3.2005]
[1727445003966,20.12870104,156.23,156.14,16.91]
[1727445004373,3.21870104,156.23,156.12,27.06]
[1727445004581,19.2,156.24,156.12,27.06]
[1727445004870,3.2001,156.21,156.17,3.2006]
[1727445005075,3.19003331,156.21,156.12,27.06]
[1727445005369,19.2,156.21,156.09,27.06]
[1727445005574,3.2007,156.18,156.09,27.06]
[1727445005977,3.2004,156.19,156.14,3.2013]
[1727445006366,22.43743541,156.21,156.14,3.2013]
[1727445006565,3.2005,156.19,156.14,3.2013]
[1727445006971,22.43743541,156.21,156.14,3.2013]
[1727445007167,3.2007,156.18,156.13,3.2015]
[1727445007676,3.2007,156.18,156.09,27.06]
[1727445007881,3.2005,156.19,156.14,3.2013]
[1727445008270,3.2003,156.2,156.15,3.2011]
[1727445008474,3.23743541,156.21,156.12,27.06]
[1727445008676,46.26,156.24,156.12,27.06]
[1727445008879,46.26,156.24,156.13,3.3563]
[1727445009275,3.2245081,156.24,156.14,27.06]
[1727445009478,76.1,156.26,156.21,3.1998]
[1727445009676,76.1,156.26,156.17,27.06]
[1727445009881,76.1,156.26,156.13,3.3563]
[1727445009882,49.52870577,156.26,156.15,27.06]
[1727445010575,49.52870577,156.26,156.19,3.2004]
[1727445011580,49.52870577,156.26,156.15,27.06]
[1727445011775,49.52870577,156.26,156.16,1.5997]
[1727445012374,49.52870577,156.26,156.19,3.2002]
[1727445013375,49.52870577,156.26,156.16,1.5997]
[1727445013577,46.26,156.24,156.13,3.3563]
[1727445013981,46.26,156.24,156.16,3.2009]
[1727445014285,46.26,156.21,156.13,3.3563]
[1727445014575,19.2,156.21,156.13,3.3563]
[1727445014780,27.06,156.23,156.13,3.3563]
[1727445014976,30.25006184,156.23,156.13,3.3563]
[1727445015376,3.19006184,156.23,156.13,3.3563]
[1727445015577,19.2,156.24,156.13,3.3563]
[1727445015774,3.1998,156.22,156.13,3.3563]
[1727445015974,3.16505481,156.22,156.13,3.3563]
[1727445016185,19.2,156.24,156.13,3.3563]
[1727445016378,27.06,156.21,156.13,3.3563]
[1727445016578,46.26,156.21,156.11,1.6515]
[1727445016887,3.201,156.16,156.11,4.8534]
[1727445017092,27.06,156.18,156.11,1.6515]
[1727445017384,46.26,156.18,156.07,1.6886]
[1727445017584,3.2013,156.15,156.1,3.2022]
[1727445018383,3.2013,156.15,156.11,3.202]
[1727445019284,3.201,156.16,156.12,3.2018]
[1727445020887,3.2013,156.15,156.07,1.6886]
[1727445022390,27.06,156.14,156.07,1.6886]
[1727445022587,27.06,156.14,156.06,1.6503]
[1727445022788,27.06,156.14,156.08,3.2025]
[1727445023087,27.06,156.14,156.04,1.5617]
[1727445023286,27.06,156.14,156.07,3.2027]
[1727445023481,27.06,156.14,156.04,1.5617]
[1727445023686,30.27572409,156.14,156.04,1.5617]
[1727445024299,16.91,156.12,156.04,1.5617]
[1727445025791,3.2021,156.11,156.07,3.2027]
[1727445026089,16.91,156.12,156.04,1.5617]
[1727445026288,3.21572409,156.14,156.05,16.91]
[1727445026485,16.91,156.13,156.04,1.5617]
[1727445026995,3.2021,156.11,156.08,3.2025]
[1727445027298,20.06566561,156.13,156.04,3.2045]
[1727445027496,20.06566561,156.13,156.04,1.5617]
[1727445027789,20.06566561,156.13,156.03,71.42116655]
[1727445027988,3.2022,156.1,156.07,3.2027]
[1727445028687,3.2021,156.11,156.08,3.2026]
[1727445029289,20.06566561,156.13,156.04,1.552]
[1727445029792,16.91,156.11,156.04,1.552]
[1727445029987,19.2,156.12,156.04,1.552]
[1727445029988,16.91,156.06,156.04,1.552]
[1727445030392,16.91,156.06,156.02,3.2037]
[1727445030792,16.91,156.06,156.0,3.2357]
[1727445030793,16.91,156.1,156.0,20.1457]
[1727445030995,3.2026,156.09,156.05,3.2031]
[1727445031793,16.91,156.08,156.0,3.2357]
[1727445032189,16.91,156.08,156.0,18.5029]
[1727445032496,36.11,156.1,156.0,18.5029]
[1727445032993,16.91,156.1,156.02,16.91]
[1727445033195,3.14392833,156.13,156.04,16.91]
[1727445033496,36.11,156.14,156.05,3.2404]
[1727445033701,3.2021,156.11,156.08,3.2025]
[1727445033993,16.91,156.14,156.04,16.91]
[1727445034303,20.18774903,156.14,156.04,16.91]
[1727445034796,3.202,156.11,156.08,3.2026]
[1727445034994,20.18774903,156.14,156.04,16.91]
[1727445035193,16.91,156.12,156.04,16.91]
[1727445035393,16.91,156.12,156.02,16.91]
[1727445035595,20.0355367,156.12,156.02,16.91]
[1727445036000,16.91,156.1,156.04,3.2034]
[1727445036191,22.3255367,156.12,156.04,3.2034]
[1727445036192,16.91,156.08,156.04,3.2034]
[1727445036392,16.91,156.08,156.01,1.5456]
[1727445036597,3.203,156.07,156.04,3.2034]
[1727445036791,16.91,156.08,156.04,3.2034]
[1727445036993,16.91,156.1,156.01,1.5456]
[1727445037200,3.2026,156.09,156.05,3.2031]
[1727445037699,3.2026,156.09,156.01,1.5456]
[1727445037700,3.2023,156.1,156.06,3.2029]
[1727445037897,16.91,156.14,156.04,16.91]
[1727445038098,76.12,156.19,156.06,16.91]
[1727445038293,3.2013,156.15,156.11,3.202]
[1727445038498,16.91,156.18,156.09,16.91]
[1727445038694,20.15388132,156.18,156.09,16.91]
[1727445038995,39.35388132,156.18,156.09,16.91]
[1727445039192,3.2012,156.15,156.11,3.2019]
[1727445040095,3.2014,156.14,156.1,3.2021]
[1727445040901,3.2012,156.15,156.11,3.2019]
[1727445042104,16.91,156.16,156.08,1.6609]
[1727445042105,3.201,156.16,156.12,3.2017]
[1727445042398,3.24388132,156.18,156.09,16.91]
[1727445042607,3.2005,156.19,156.15,3.2012]
[1727445042805,93.03,156.23,156.13,16.91]
[1727445042997,76.12,156.23,156.15,16.91]
[1727445043503,3.1999,156.22,156.15,16.91]
[1727445044003,93.03,156.23,156.13,16.91]
[1727445044299,112.23,156.23,156.1,1.6386]
[1727445044504,16.91,156.16,156.1,1.6386]
[1727445044805,20.10836106,156.16,156.08,3.2097]
[1727445045498,16.91,156.14,156.04,16.91]
[1727445045702,16.91,156.14,156.04,18.6174]
[1727445045897,3.2019,156.12,156.04,18.6174]
[1727445046096,16.91,156.14,156.04,18.6174]
[1727445046294,3.24127489,156.16,156.05,27.08]
[1727445046497,46.28,156.18,156.05,27.08]
[1727445046901,49.52800019,156.18,156.05,27.08]
[1727445047700,3.2015,156.14,156.09,3.2023]
[1727445048308,3.2012,156.15,156.1,3.2022]
[1727445050111,3.2014,156.14,156.1,3.2022]
[1727445051109,3.2013,156.15,156.1,3.2022]
[1727445054016,3.201,156.16,156.05,27.08]
[1727445054216,3.24800019,156.18,156.07,27.08]
[1727445054505,3.201,156.17,156.12,3.2016]
[1727445054711,3.21496907,156.2,156.1,27.08]
[1727445054918,103.2,156.23,156.11,4.8028]
[1727445055304,76.12,156.23,156.12,27.08]
[1727445056905,3.2002,156.21,156.16,3.2009]
[1727445057307,76.12,156.23,156.12,27.08]
[1727445057508,3.1998,156.22,156.18,3.2005]
[1727445057712,3.24761913,156.28,156.17,27.08]
[1727445058010,3.1988,156.27,156.22,3.1996]
[1727445058212,6.42513903,156.27,156.22,3.1996]
[1727445058518,3.1988,156.27,156.22,3.1996]
[1727445058815,3.199,156.26,156.21,3.1999]
[1727445059013,3.21897296,156.27,156.21,3.1999]
[1727445059317,27.08,156.29,156.21,3.1999]
[1727445059719,30.27687475,156.29,156.21,3.1999]
[1727445060014,3.1993,156.25,156.2,3.2002]
[1727445060214,30.27687475,156.29,156.2,3.2002]
[1727445060416,49.47687475,156.29,156.19,3.2003]
[1727445060609,27.08,156.26,156.15,27.08]
[1727445061012,27.08,156.26,156.17,3.2008]
[1727445061213,3.1997,156.23,156.12,30.2912]
[1727445061418,49.47687475,156.29,156.2,3.2001]
[1727445061919,0.96484262,156.28,156.15,27.08]
[1727445062117,0.96484262,156.28,156.19,3.2003]
[1727445062515,3.1998,156.22,156.15,27.08]
[1727445062715,3.1998,156.22,156.12,30.2912]
[1727445062917,27.08,156.26,156.12,30.2912]
[1727445063110,3.1996,156.23,156.18,3.2005]
[1727445063312,27.08,156.26,156.15,27.08]
[1727445063720,27.08,156.26,156.19,3.2002]
[1727445063922,27.08,156.26,156.15,27.08]
[1727445064419,3.1995,156.24,156.2,3.2]
[1727445064618,3.1995,156.24,156.15,27.08]
[1727445064818,3.1996,156.23,156.19,3.2003]
[1727445065213,27.08,156.26,156.15,27.08]
[1727445065417,49.47687475,156.29,156.15,27.08]
[1727445065612,3.19687475,156.29,156.18,27.08]
[1727445065825,78.7029,156.31,156.2,27.08]
[1727445066120,78.7029,156.31,156.22,3.1996]
[1727445066121,3.1989,156.27,156.22,3.1996]
[1727445066325,3.18685993,156.27,156.22,3.1996]
[1727445066620,46.28,156.3,156.17,27.08]
[1727445067020,46.28,156.3,156.21,3.2]
[1727445067221,49.52033181,156.3,156.21,3.2]
[1727445067421,3.1992,156.25,156.21,3.2]
[1727445067620,49.52033181,156.3,156.2,3.2002]
[1727445067821,27.08,156.27,156.2,3.2002]
[1727445068021,3.1992,156.25,156.2,3.2002]
[1727445068222,27.08,156.27,156.2,3.2002]
[1727445068417,19.2,156.27,156.14,16.9]
[1727445068625,3.2001,156.21,156.14,16.9]
[1727445068832,3.15487495,156.21,156.14,16.9]
[1727445069025,16.9,156.21,156.12,20.1112]
[1727445069236,16.9,156.23,156.14,16.9]
[1727445069428,16.9,156.23,156.12,3.2112]
[1727445069429,36.1,156.27,156.21,3.1999]
[1727445069627,36.1,156.27,156.12,20.1112]
[1727445069628,3.1989,156.27,156.2,16.9]
[1727445070030,16.9,156.29,156.2,16.9]
[1727445070937,3.24033181,156.3,156.22,16.9]
[1727445071132,16.9,156.31,156.24,3.1993]
[1727445071436,0.96456358,156.3,156.24,16.9]
[1727445071631,133.50455316,156.33,156.25,3.1991]
[1727445071832,0.96465081,156.32,156.25,3.1991]
[1727445072030,3.1981,156.3,156.25,3.1991]
[1727445072235,135.20995316,156.33,156.25,3.1991]
[1727445072236,133.50455316,156.33,156.25,3.1991]
[1727445072537,3.1983,156.3,156.25,3.1991]
[1727445073732,16.9,156.31,156.23,3.1994]
[1727445073931,16.9,156.31,156.22,16.9]
[1727445074529,16.9,156.3,156.2,16.9]
[1727445074733,16.9,156.28,156.2,16.9]
[1727445075535,3.1991,156.26,156.21,3.1998]
[1727445075730,16.9,156.28,156.21,3.1998]
[1727445076338,3.199,156.26,156.21,3.1998]
[1727445076729,20.15840824,156.25,156.2,3.2002]
[1727445076942,16.9,156.25,156.16,16.9]
[1727445077139,16.9,156.25,156.14,18.5782]
[1727445077140,16.9,156.23,156.14,18.5782]
[1727445077531,20.02141426,156.25,156.16,16.9]
[1727445077732,16.9,156.25,156.16,16.9]
[1727445078240,20.1807859,156.25,156.16,16.9]
[1727445078645,3.1997,156.23,156.18,3.2004]
[1727445078945,16.9,156.21,156.14,1.6782]
[1727445079246,3.2008,156.17,156.14,1.6782]
[1727445079431,20.1008,156.17,156.14,1.6782]
[1727445079842,20.1008,156.17,156.12,4.8983]
[1727445080039,20.1008,156.17,156.12,3.2018]
[1727445080442,16.9,156.17,156.11,1.5928]
[1727445080645,22.4807859,156.25,156.09,1.6074]
[1727445080646,16.9,156.15,156.09,1.6074]
[1727445080841,16.9,156.15,156.06,16.9]
[1727445081040,3.16461706,156.16,156.11,3.2019]
[1727445082240,16.9,156.17,156.12,3.2016]
[1727445082439,16.9,156.17,156.08,16.9]
[1727445082440,76.06,156.22,156.1,27.07]
[1727445082841,3.2004,156.19,156.14,3.2013]
[1727445083049,76.06,156.22,156.11,3.3017]
[1727445083245,3.2,156.21,156.11,3.3017]
[1727445083454,3.2,156.21,156.15,3.201]
[1727445083752,3.2002,156.2,156.11,3.3154]
[1727445084744,3.2,156.21,156.11,3.3154]
[1727445084948,106.4307859,156.25,156.13,27.07]
[1727445085150,79.3607859,156.25,156.13,27.07]
[1727445085447,82.5599859,156.25,156.15,27.07]
[1727445085843,3.1994,156.24,156.15,27.07]
[1727445086141,79.3607859,156.25,156.15,27.07]
[1727445086343,79.3607859,156.25,156.13,30.2876]
[1727445086539,3.1997,156.23,156.18,3.2005]
[1727445086945,79.3607859,156.25,156.17,3.2008]
[1727445086946,3.1999,156.22,156.17,3.2008]
[1727445087249,79.3607859,156.25,156.14,3.2283]
[1727445087444,79.3607859,156.25,156.14,1.6238]
[1727445087645,3.1996,156.23,156.18,3.2004]
[1727445088350,3.1996,156.23,156.19,3.2003]
[1727445088549,3.1994,156.24,156.14,1.6517]
[1727445088850,3.1994,156.24,156.13,27.07]
[1727445089055,3.1994,156.24,156.14,1.6517]
[1727445089553,79.3607859,156.25,156.14,1.6517]
[1727445089754,79.3607859,156.25,156.19,3.2003]
[1727445090052,3.1996,156.23,156.19,3.2003]
[1727445090848,3.1994,156.24,156.2,3.2002]
[1727445091054,27.07,156.3,156.18,27.07]
[1727445091251,27.07,156.32,156.18,27.07]
[1727445091444,28.0241,156.32,156.18,27.07]
[1727445091648,28.0241,156.32,156.2,27.07]
[1727445091950,1.7077,156.31,156.2,27.07]
[1727445092153,3.1983,156.29,156.2,27.07]
[1727445092452,27.07,156.32,156.2,27.07]
[1727445093254,3.1987,156.28,156.2,27.07]
[1727445093455,27.07,156.32,156.2,27.07]
[1727445093850,3.1984,156.29,156.26,3.1989]
[1727445095141,3.1982,156.3,156.26,3.1989]
[1727445095350,192.71455316,156.33,156.23,27.07]
[1727445095351,76.08,156.33,156.23,27.07]
[1727445095652,76.08,156.33,156.25,27.07]
[1727445095850,76.08,156.33,156.27,3.1987]
[1727445096048,79.2776,156.33,156.23,27.07]
[1727445096353,95.29,156.41,156.33,3.1974]
[1727445096557,98.51943398,156.41,156.33,3.1974]
[1727445096852,98.51943398,156.41,156.28,27.07]
[1727445096853,27.07,156.4,156.28,27.07]
[1727445097052,27.07,156.4,156.31,3.1979]
[1727445097250,27.07,156.37,156.25,27.07]
[1727445097443,46.3,156.37,156.25,27.07]
[1727445097647,98.51943398,156.41,156.25,27.07]
[1727445097843,3.197,156.36,156.25,27.07]
[1727445098046,27.07,156.37,156.25,27.07]
[1727445098249,27.07,156.37,156.29,3.1982]
[1727445098552,3.1974,156.34,156.29,3.1982]
[1727445099154,3.1974,156.34,156.3,3.1981]
[1727445101152,3.1974,156.34,156.29,3.1983]
[1727445102055,27.07,156.37,156.29,3.1983]
[1727445102255,46.3,156.37,156.27,3.1987]
[1727445102558,46.3,156.35,156.23,27.07]
[1727445102754,46.3,156.35,156.19,225.0]
[1727445102755,27.07,156.32,156.2,27.07]
[1727445102953,30.22194007,156.32,156.2,27.07]
[1727445103650,27.07,156.3,156.19,225.0]
[1727445103958,27.07,156.3,156.17,27.07]
[1727445104159,49.45194007,156.32,156.19,27.07]
[1727445104351,27.07,156.35,156.24,27.07]
[1727445104552,46.3,156.37,156.27,3.1987]
[1727445104959,27.07,156.37,156.26,27.07]
[1727445105157,3.1973,156.34,156.26,27.07]
[1727445106060,3.1973,156.34,156.3,3.198]
[1727445106659,3.1976,156.33,156.26,27.07]
[1727445106858,3.13737406,156.33,156.24,27.07]
[1727445107060,46.3,156.37,156.24,27.07]
[1727445107563,27.07,156.4,156.26,27.07]
[1727445107758,19.23,156.39,156.26,27.07]
[1727445108064,3.197,156.36,156.29,27.07]
[1727445108463,27.07,156.4,156.29,27.07]
[1727445108759,46.3,156.4,156.29,27.07]
[1727445108959,46.3,156.4,156.31,3.1978]
[1727445109364,46.3,156.4,156.26,27.07]
[1727445109561,3.1975,156.34,156.26,27.07]
[1727445109757,3.20564394,156.33,156.24,27.07]
[1727445109958,46.3,156.37,156.24,27.07]
[1727445110465,3.1979,156.32,156.24,27.07]
[1727445110767,3.16085003,156.33,156.24,27.07]
[1727445110965,46.3,156.37,156.24,27.07]
[1727445111666,46.3,156.37,156.26,27.07]
[1727445111858,3.1973,156.35,156.3,3.198]
[1727445112164,46.3,156.37,156.3,3.198]
[1727445112567,46.3,156.37,156.29,3.1983]
[1727445113470,46.3,156.35,156.2,27.07]
[1727445113968,46.3,156.35,156.25,3.199]
[1727445114570,27.07,156.32,156.2,27.07]
[1727445114868,46.3,156.3,156.17,27.07]
[1727445115071,27.07,156.27,156.19,3.2003]
[1727445115259,27.07,156.27,156.15,27.07]
[1727445115465,3.1995,156.24,156.15,27.07]
[1727445115659,27.07,156.27,156.15,27.07]
[1727445115660,46.3,156.27,156.15,27.07]
[1727445115866,3.1998,156.22,156.12,27.07]
[1727445116772,3.1998,156.22,156.18,3.2005]
[1727445117367,3.1997,156.23,156.12,27.07]
[1727445117572,46.3,156.27,156.15,27.07]
[1727445117970,3.1994,156.24,156.15,27.07]
[1727445118374,3.1994,156.24,156.16,4.9237]
[1727445119373,3.5185,156.29,156.17,27.07]
[1727445119873,1.6029,156.29,156.2,27.07]
[1727445120074,3.27549379,156.3,156.2,27.07]
[1727445120775,76.04,156.31,156.2,27.07]
[1727445120979,76.04,156.31,156.22,27.07]
[1727445121175,76.04,156.31,156.23,1.6783]
[1727445121372,76.04,156.31,156.23,3.3362]
[1727445121774,3.1983,156.3,156.25,3.1991]
[1727445121971,3.1983,156.3,156.23,3.3362]
[1727445122578,3.1983,156.3,156.26,3.1988]
[1727445122980,76.04,156.31,156.27,3.1986]
[1727445123282,2.5585,156.36,156.24,27.07]
[1727445123780,2.5585,156.36,156.28,3.1985]
[1727445124581,3.1975,156.33,156.28,3.1985]
[1727445124984,1.6029,156.36,156.27,27.07]
[1727445126485,1.6029,156.36,156.31,3.1978]
[1727445127082,1.6029,156.36,156.27,27.07]
[1727445127287,1.6029,156.36,156.23,4.9476]
[1727445127288,27.07,156.35,156.23,4.9476]
[1727445128291,27.07,156.35,156.27,3.1987]
[1727445128495,27.07,156.35,156.23,4.9476]
[1727445128695,27.07,156.33,156.23,4.9476]
[1727445128995,30.25705972,156.33,156.23,1.6783]
[1727445129794,27.07,156.3,156.17,30.2573]
[1727445130090,27.07,156.3,156.18,1.6303]
[1727445130289,22.41705972,156.33,156.18,1.6303]
[1727445130290,27.07,156.28,156.18,1.6303]
[1727445130691,3.1994,156.25,156.18,1.6303]
[1727445131194,27.07,156.26,156.19,3.2003]
[1727445131386,3.14930138,156.25,156.19,3.2003]
[1727445131692,28.0271,156.28,156.18,1.6303]
[1727445132095,28.0271,156.28,156.2,3.2]
[1727445132096,3.1993,156.25,156.2,3.2]
[1727445133092,3.1994,156.24,156.2,3.2]
[1727445133293,3.1994,156.24,156.19,3.2003]
[1727445133489,30.19433497,156.25,156.19,3.2003]
[1727445133691,27.07,156.25,156.19,3.2003]
[1727445133890,30.31888573,156.25,156.12,27.07]
[1727445134498,3.1999,156.22,156.17,3.2006]
[1727445134992,27.07,156.2,156.11,3.1575]
[1727445135805,3.2008,156.17,156.13,3.2015]
[1727445136295,3.2008,156.17,156.11,3.1575]
[1727445136598,27.07,156.18,156.11,3.1575]
[1727445136798,27.07,156.13,156.11,3.1575]
[1727445136997,27.07,156.13,156.1,1.5667]
[1727445137198,27.07,156.13,155.97,27.07]
[1727445137199,19.23,156.12,155.97,27.07]
[1727445137391,19.23,156.12,156.01,3.2039]
[1727445137392,27.07,156.09,156.01,3.2039]
[1727445137601,22.37155741,156.12,155.97,27.07]
[1727445137999,22.37155741,156.12,156.01,3.2039]
[1727445138204,27.07,156.1,155.97,27.07]
[1727445138500,3.2027,156.08,155.97,27.07]
[1727445138703,27.07,156.1,156.02,3.2037]
[1727445139101,3.2027,156.08,155.97,27.07]
[1727445139299,27.07,156.1,156.03,3.2037]
[1727445139505,30.21155741,156.12,156.0,27.07]
[1727445139801,27.07,156.15,156.02,27.07]
[1727445142001,27.07,156.17,156.02,27.07]
[1727445142497,27.07,156.17,155.96,27.07]
[1727445142498,27.07,156.17,156.05,27.07]
[1727445143303,3.2015,156.14,156.09,3.2024]
[1727445143501,27.07,156.15,156.03,27.07]
[1727445143897,3.2021,156.11,156.06,3.2028]
[1727445144101,27.07,156.15,156.03,27.07]
[1727445144505,27.07,156.1,155.98,27.07]
[1727445144806,27.07,156.08,155.95,27.07]
[1727445145107,3.2032,156.06,156.01,3.2041]
[1727445145509,3.2032,156.06,155.95,27.07]
[1727445146597,3.2033,156.05,155.95,27.07]
[1727445147102,3.2033,156.05,156.01,3.2039]
[1727445147899,27.07,156.08,155.93,27.07]
[1727445148311,3.2034,156.05,156.01,3.204]
[1727445148508,27.07,156.03,155.88,225.0]
[1727445148804,3.2045,155.99,155.89,27.07]
[1727445149011,27.07,156.0,155.87,27.07]
[1727445149207,27.07,155.98,155.87,27.07]
[1727445149411,3.2052,155.96,155.87,27.07]
[1727445149605,30.21289422,155.98,155.87,27.07]
[1727445149802,3.205,155.97,155.92,3.2058]
[1727445150208,27.07,156.0,155.87,27.07]
[1727445150408,27.07,156.0,155.94,3.2054]
[1727445150409,3.2046,155.99,155.94,3.2054]